bitfinex/quotes_SOLUSD_20241117
["timestamp","ask_amount","ask_price","bid_price","bid_amount"]
[1731875888418,20.93517585,235.83,235.69,14.8498]
[1731875888419,16.69477585,235.77,235.69,14.8498]
[1731875889036,20.0,235.83,235.7,16.69477585]
[1731875889205,16.69477585,235.78,235.69,27.30187585]
[1731875889410,24.2405,235.82,235.64,0.464792]
[1731875889411,16.69477585,235.72,235.64,15.317792]
[1731875890218,16.69477585,235.8,235.64,0.464792]
[1731875890219,16.69477585,235.7,235.64,0.464792]
[1731875890419,16.69477585,235.68,235.64,0.464792]
[1731875890626,6.3206,235.71,235.64,0.464792]
[1731875890627,6.3206,235.71,235.64,4.708492]
[1731875890932,6.3206,235.71,235.65,16.69477585]
[1731875891516,6.3206,235.71,235.64,0.464792]
[1731875892321,23.01537585,235.76,235.67,16.69477585]
[1731875892628,23.01537585,235.76,235.64,0.464792]
[1731875892629,16.69477585,235.72,235.64,0.464792]
[1731875892938,16.69477585,235.68,235.64,0.464792]
[1731875893731,16.69477585,235.72,235.64,15.317692]
[1731875894514,20.0,235.71,235.64,11.074192]
[1731875894735,16.69477585,235.7,235.64,11.074192]
[1731875895231,16.69477585,235.72,235.64,11.074192]
[1731875895644,16.69477585,235.74,235.64,32.01266785]
[1731875895831,16.69477585,235.81,235.72,16.69477585]
[1731875896018,6.2571,235.82,235.74,16.69477585]
[1731875896534,6.2571,235.82,235.68,16.69477585]
[1731875896535,6.2571,235.82,235.76,16.69477585]
[1731875896714,16.69477585,235.88,235.78,16.69477585]
[1731875896911,6.2571,235.89,235.8,16.69477585]
[1731875897515,6.2571,235.89,235.81,14.8424]
[1731875898134,6.2571,235.89,235.79,4.2409]
[1731875898135,16.69477585,235.86,235.79,4.2409]
[1731875898444,6.2571,235.95,235.85,16.69477585]
[1731875898616,22.95187585,235.95,235.85,16.69477585]
[1731875898815,16.69477585,235.93,235.83,16.69477585]
[1731875899017,16.69477585,235.93,235.85,16.69477585]
[1731875899331,16.69477585,235.95,235.85,16.69477585]
[1731875899532,16.69477585,235.97,235.87,16.69477585]
[1731875899839,0.73520115,236.01,235.87,10.5987]
[1731875899840,16.69477585,235.95,235.87,10.5987]
[1731875900135,16.69477585,235.93,235.84,4.24]
[1731875900340,16.69477585,235.91,235.83,16.69477585]
[1731875900737,16.69477585,235.91,235.82,14.8417]
[1731875900920,16.69477585,235.89,235.82,10.6012]
[1731875901120,16.69477585,235.87,235.82,10.6012]
[1731875902416,16.69477585,235.85,235.77,10.6034]
[1731875902617,16.69477585,235.85,235.77,27.29817585]
[1731875902831,16.69477585,235.87,235.79,16.69477585]
[1731875903040,16.69477585,235.89,235.81,16.69477585]
[1731875903346,16.69477585,235.91,235.81,16.69477585]
[1731875903637,16.69477585,235.91,235.81,6.69477585]
[1731875903860,16.69477585,235.91,235.81,16.69477585]
[1731875904013,20.93377585,235.91,235.81,16.69477585]
[1731875904220,16.69477585,235.91,235.81,16.69477585]
[1731875905425,16.69477585,235.89,235.81,16.69477585]
[1731875905624,16.69477585,235.93,235.85,16.69477585]
[1731875906032,16.69477585,235.93,235.85,20.93457585]
[1731875906374,20.93337585,235.93,235.85,4.2398]
[1731875906839,6.1155,235.94,235.83,4.2402]
[1731875906840,16.69477585,235.91,235.83,4.2402]
[1731875907261,6.1155,235.94,235.81,16.69477585]
[1731875907262,16.69477585,235.87,235.81,4.2406]
[1731875907547,16.69477585,235.87,235.8,14.8426]
[1731875907919,16.69477585,235.87,235.8,10.6019]
[1731875908739,16.69477585,235.87,235.73,0.1]
[1731875908740,16.69477585,235.85,235.75,16.69477585]
[1731875908941,16.69477585,235.85,235.69,0.09367462]
[1731875908942,16.69477585,235.77,235.69,0.09367462]
[1731875909153,16.69477585,235.75,235.69,0.09367462]
[1731875909339,16.69477585,235.75,235.69,4.33637462]
[1731875910855,20.93667585,235.75,235.69,0.09367462]
[1731875911152,16.69477585,235.73,235.69,0.09367462]
[1731875911739,6.1155,235.79,235.69,0.09367462]
[1731875911740,22.81027585,235.79,235.69,31.63825047]
[1731875911944,16.69477585,235.81,235.73,16.69477585]
[1731875912145,16.69477585,235.83,235.75,16.69477585]
[1731875912553,16.69477585,235.83,235.76,4.2416]
[1731875914850,16.69477585,235.85,235.76,4.2416]
[1731875915853,20.93477585,235.85,235.76,4.2416]
[1731875916733,16.69477585,235.89,235.81,16.69477585]
[1731875916958,6.1155,235.9,235.81,16.69477585]
[1731875917138,6.1155,235.9,235.83,16.69477585]
[1731875917339,20.93327585,235.93,235.83,16.69477585]
[1731875918153,20.93327585,235.93,235.84,4.2401]
[1731875918339,16.69477585,235.91,235.83,10.6006]
[1731875918639,4.2385,235.93,235.83,10.6006]
[1731875918640,16.69477585,235.89,235.83,14.8409]
[1731875918845,16.69477585,235.89,235.83,4.2403]
[1731875919046,16.69477585,235.89,235.81,16.69477585]
[1731875919439,16.69477585,235.85,235.75,16.69477585]
[1731875919756,16.69477585,235.83,235.75,16.69477585]
[1731875920157,16.69477585,235.83,235.76,4.2414]
[1731875920751,16.69477585,235.81,235.74,4.2418]
[1731875920955,16.69477585,235.79,235.74,4.2418]
[1731875921661,16.69477585,235.81,235.74,14.8467]
[1731875921962,16.69477585,235.81,235.75,24.027864]
[1731875922150,16.69477585,235.81,235.76,4.2416]
[1731875922356,16.69477585,235.83,235.76,4.2416]
[1731875922864,16.69477585,235.89,235.79,16.69477585]
[1731875923065,16.69477585,235.91,235.81,16.69477585]
[1731875923263,16.69477585,235.91,235.83,16.69477585]
[1731875924141,16.69477585,235.95,235.87,16.69477585]
[1731875924438,16.69477585,235.97,235.87,16.69477585]
[1731875924654,16.69477585,235.93,235.85,16.69477585]
[1731875924854,16.69477585,235.95,235.86,24.12153862]
[1731875925060,16.69477585,235.97,235.87,16.69477585]
[1731875925449,16.69477585,235.97,235.9,23.902374]
[1731875925663,16.69477585,235.97,235.87,16.69477585]
[1731875926345,16.69477585,235.97,235.88,4.2394]
[1731875926540,16.69477585,235.93,235.86,4.2397]
[1731875926771,16.69477585,235.97,235.89,16.69477585]
[1731875927076,20.0,235.98,235.9,23.902374]
[1731875927273,16.69477585,235.99,235.9,23.902374]
[1731875927643,16.69477585,235.99,235.91,16.69477585]
[1731875928542,16.69477585,235.99,235.92,14.8355]
[1731875928770,16.69477585,236.01,235.92,14.8355]
[1731875929484,4.2369,236.02,235.93,16.69477585]
[1731875929842,4.2369,236.02,235.94,4.2383]
[1731875930456,16.69477585,236.01,235.94,4.2383]
[1731875930858,16.69477585,236.01,235.92,14.8355]
[1731875931863,16.69477585,236.03,235.93,40.81631447]
[1731875932966,23.80155231,236.09,235.94,4.2383]
[1731875932967,16.69477585,236.01,235.94,4.2383]
[1731875933368,4.32967462,236.07,235.93,16.82026585]
[1731875933369,16.69477585,236.03,235.93,16.82026585]
[1731875933578,14.826,236.07,235.92,10.5968]
[1731875933579,16.69477585,236.01,235.92,10.5968]
[1731875934254,16.69477585,236.01,235.93,16.91394047]
[1731875934762,16.69477585,236.01,235.93,16.82026585]
[1731875934973,16.69477585,236.01,235.94,4.2383]
[1731875935266,16.69477585,236.01,235.92,14.8354]
[1731875935267,20.93197585,236.01,235.92,14.8354]
[1731875935475,16.69477585,235.95,235.87,10.5986]
[1731875935965,16.69477585,235.95,235.87,14.8382]
[1731875937968,20.93297585,235.95,235.87,14.8382]
[1731875939369,16.69477585,235.98,235.88,24.12153862]
[1731875939551,16.69477585,235.98,235.88,23.902374]
[1731875940149,16.69477585,235.98,235.87,31.53297585]
[1731875940150,4.2371,236.01,235.91,0.21916462]
[1731875940461,16.69477585,236.0,235.92,16.69477585]
[1731875941074,16.69477585,236.02,235.93,23.902374]
[1731875941265,16.69477585,236.0,235.9,16.69477585]
[1731875941463,16.69477585,235.98,235.89,24.027864]
[1731875942464,20.93247585,235.98,235.9,4.239]
[1731875942977,16.69477585,235.94,235.88,14.838]
[1731875943282,20.0,236.03,235.88,31.53277585]
[1731875943486,15.56751179,236.1,235.97,16.69477585]
[1731875943487,16.69477585,236.06,235.97,16.69477585]
[1731875943774,16.69477585,236.1,236.01,16.69477585]
[1731875944381,16.69477585,236.12,236.03,40.59714985]
[1731875944567,16.69477585,236.1,236.02,14.8292]
[1731875945150,16.69477585,236.12,236.03,24.12153862]
[1731875945552,16.69477585,236.12,236.05,23.902374]
[1731875946155,4.2345,236.16,236.07,23.902374]
[1731875946156,16.69477585,236.16,236.07,23.902374]
[1731875946354,16.69477585,236.16,236.08,0.34465462]
[1731875946855,16.69477585,236.16,236.08,17.03943047]
[1731875947051,16.69477585,236.16,236.1,0.12549]
[1731875947457,16.69477585,236.16,236.1,4.36089]
[1731875948180,16.69477585,236.16,235.98,20.1]
[1731875948181,16.69477585,236.11,235.98,20.1]
[1731875948483,16.69477585,236.11,236.03,0.09367462]
[1731875949353,16.69477585,236.13,236.05,23.99604862]
[1731875950475,16.69477585,236.11,236.04,10.5914]
[1731875950654,16.69477585,236.07,235.98,10.5937]
[1731875950853,16.69477585,236.07,235.99,0.09367462]
[1731875951174,16.69477585,236.07,235.98,14.8312]
[1731875951571,16.69477585,236.05,235.98,10.5937]
[1731875951769,16.69477585,236.03,235.98,10.5937]
[1731875952479,20.93157585,236.03,235.96,16.2876]
[1731875952782,16.69477585,236.01,235.94,4.2382]
[1731875954278,16.69477585,236.05,235.96,16.69477585]
[1731875954679,16.69477585,236.05,235.97,0.09367462]
[1731875954857,16.69477585,236.05,235.98,0.12549]
[1731875955479,20.93117585,236.05,235.98,0.12549]
[1731875955687,16.69477585,236.03,235.95,4.238]
[1731875956570,16.69477585,235.99,235.93,10.5961]
[1731875957282,16.69477585,235.95,235.88,10.5984]
[1731875957461,16.69477585,235.95,235.89,4.2391]
[1731875957666,16.69477585,235.97,235.89,14.8372]
[1731875957988,16.69477585,236.01,235.92,0.09367462]
[1731875958165,16.69477585,236.01,235.91,16.69477585]
[1731875958468,16.69477585,236.01,235.92,24.12153862]
[1731875958879,16.69477585,236.01,235.91,16.69477585]
[1731875959181,16.69477585,235.99,235.89,31.53197585]
[1731875959691,20.93237585,235.99,235.89,31.53197585]
[1731875959987,16.69477585,235.97,235.89,14.8372]
[1731875960385,16.69477585,235.95,235.89,10.5981]
[1731875961092,16.69477585,235.95,235.89,14.8373]
[1731875961295,20.93227585,235.99,235.89,31.53207585]
[1731875961503,16.69477585,235.95,235.86,4.2396]
[1731875961799,16.69477585,235.92,235.86,4.2396]
[1731875962284,16.69477585,235.94,235.86,14.8391]
[1731875962801,16.69477585,235.92,235.86,14.8391]
[1731875964581,16.69477585,235.94,235.86,14.8391]
[1731875966079,4.2372,236.0,235.78,21.2061]
[1731875966080,16.69477585,235.88,235.81,10.6013]
[1731875966283,6.353,235.96,235.84,16.69477585]
[1731875966284,16.69477585,235.93,235.84,16.69477585]
[1731875967813,16.69477585,235.87,235.79,20.0814]
[1731875968585,16.69477585,235.87,235.79,30.684]
[1731875969106,16.69477585,235.85,235.79,10.6026]
[1731875969295,16.69477585,235.83,235.74,47.38157585]
[1731875969803,16.69477585,235.85,235.76,16.69477585]
[1731875970013,16.69477585,235.87,235.78,16.69477585]
[1731875971421,16.69477585,235.87,235.75,0.09367462]
[1731875971422,6.353,235.96,235.8,16.78845047]
[1731875971605,6.353,235.96,235.75,0.09367462]
[1731875971606,16.69477585,235.94,235.84,16.69477585]
[1731875971779,16.69477585,235.94,235.86,4.2398]
[1731875972119,16.69477585,235.88,235.81,0.25098]
[1731875972405,16.69477585,235.92,235.83,24.027864]
[1731875972611,16.69477585,235.9,235.8,27.29667585]
[1731875973111,16.69477585,235.88,235.78,16.69477585]
[1731875973285,16.69477585,235.86,235.77,0.12549]
[1731875973710,16.69477585,235.84,235.76,31.54037585]
[1731875974096,16.69477585,235.84,235.75,0.09367462]
[1731875974295,16.69477585,235.8,235.75,0.09367462]
[1731875974590,16.69477585,235.77,235.75,0.09367462]
[1731875974994,16.69477585,235.79,235.75,0.09367462]
[1731875978224,20.93587585,235.79,235.75,0.09367462]
[1731875983720,41.13005047,235.76,235.75,0.09367462]
[1731875984017,16.69477585,235.7,235.69,0.09367462]
[1731875985909,20.93737585,235.7,235.69,0.09367462]
[1731875989719,16.69477585,235.7,235.69,0.09367462]
[1731875994635,16.69477585,235.72,235.69,0.09367462]
[1731875994813,27.19927585,235.78,235.7,16.69477585]
[1731875995015,20.93607585,235.78,235.7,16.69477585]
[1731875995230,20.93607585,235.78,235.69,14.94337462]
[1731875995231,20.93607585,235.78,235.71,16.69477585]
[1731875995605,16.69477585,235.8,235.71,16.69477585]
[1731875995920,4.2405,235.82,235.73,16.69477585]
[1731875996327,16.69477585,235.81,235.73,16.69477585]
[1731875996629,20.93547585,235.81,235.73,20.93667585]
[1731875997737,16.69477585,235.79,235.71,16.69477585]
[1731875998810,16.69477585,235.79,235.72,4.2423]
[1731875999332,20.93587585,235.79,235.7,10.6067]
[1731875999642,20.93587585,235.79,235.7,14.8493]
[1731876000233,16.69477585,235.79,235.71,16.69477585]
[1731876001030,20.93537585,235.82,235.73,16.69477585]
[1731876001225,27.19827585,235.84,235.75,16.69477585]
[1731876001429,20.93457585,235.86,235.77,16.69477585]
[1731876001828,7.56613138,235.92,235.85,16.69477585]
[1731876002032,4.2382,235.95,235.87,16.69477585]
[1731876002236,20.932976,235.95,235.87,16.69477585]
[1731876002416,16.694776,235.95,235.87,16.69477585]
[1731876002935,6.2291,235.98,235.91,16.69477585]
[1731876003117,20.93227585,235.99,235.9,4.2389]
[1731876003640,6.96485929,236.05,235.9,4.2389]
[1731876003641,16.69477585,236.03,235.94,16.69477585]
[1731876004017,16.69477585,236.01,235.92,16.69477585]
[1731876004434,16.69477585,236.03,235.94,16.69477585]
[1731876005240,16.69477585,236.05,235.96,16.69477585]
[1731876005424,16.69477585,236.07,235.98,16.69477585]
[1731876005621,16.69477585,236.09,236.0,16.69477585]
[1731876005946,15.33897462,236.13,236.02,16.69477585]
[1731876005947,16.69477585,236.11,236.02,16.69477585]
[1731876006120,16.78845047,236.13,236.04,16.69477585]
[1731876006329,21.02345047,236.13,236.04,16.69477585]
[1731876006533,16.69477585,236.11,235.95,44.22153862]
[1731876006844,16.78845047,236.13,236.03,23.902374]
[1731876007219,16.78845047,236.13,236.03,28.138974]
[1731876007745,16.78845047,236.13,236.04,16.69477585]
[1731876007920,16.69477585,236.11,236.03,38.730774]
[1731876008332,21.02345047,236.13,236.03,38.730774]
[1731876008740,21.02345047,236.13,236.04,16.91394047]
[1731876008741,0.09367462,236.13,236.04,16.91394047]
[1731876008936,0.09367462,236.13,236.1,23.776884]
[1731876009124,0.09367462,236.13,236.06,0.34465462]
[1731876009332,0.09367462,236.13,236.08,23.902374]
[1731876010039,0.09367462,236.13,236.08,40.59714985]
[1731876010947,0.09367462,236.13,236.08,44.83284985]
[1731876011723,0.09367462,236.13,236.05,6.0637]
[1731876012026,16.69477585,236.09,236.01,14.8294]
[1731876012848,16.69477585,236.05,235.97,4.2377]
[1731876013942,16.69477585,236.03,235.95,14.8332]
[1731876014339,16.69477585,236.03,235.96,24.027864]
[1731876014541,16.69477585,236.03,235.96,23.776884]
[1731876015837,16.69477585,236.03,235.95,10.5951]
[1731876016034,16.69477585,235.99,235.92,4.2386]
[1731876017226,16.69477585,236.03,235.94,16.69477585]
[1731876017423,16.69477585,236.01,235.92,20.93337585]
[1731876017853,16.69477585,236.01,235.93,24.027864]
[1731876018150,16.69477585,236.01,235.93,23.776884]
[1731876018553,20.93187585,236.01,235.93,23.776884]
[1731876018964,16.69477585,236.01,235.93,28.015284]
[1731876019143,10.5882,236.11,235.8,6.0357]
[1731876019144,16.69477585,235.96,235.8,6.0357]
[1731876019353,16.69477585,235.94,235.83,16.69477585]
[1731876019549,16.69477585,235.92,235.83,16.69477585]
[1731876019738,16.69477585,235.94,235.87,30.9073]
[1731876020434,16.69477585,235.94,235.88,23.776884]
[1731876021132,16.69477585,235.94,235.89,0.25098]
[1731876021336,16.69477585,235.98,235.89,0.25098]
[1731876022853,0.1,236.06,235.88,23.776884]
[1731876023032,0.09367462,236.03,235.89,0.25098]
[1731876023234,16.69477585,235.97,235.89,0.25098]
[1731876023444,16.69477585,236.04,235.89,0.25098]
[1731876023445,16.69477585,235.95,235.89,0.25098]
[1731876023662,16.69477585,235.99,235.89,0.09367462]
[1731876023848,16.69477585,236.01,235.92,16.69477585]
[1731876024162,16.69477585,236.01,235.93,23.776884]
[1731876024730,16.69477585,236.03,235.95,23.776884]
[1731876024943,16.69477585,236.03,235.97,23.776884]
[1731876025454,16.69477585,235.99,235.92,24.027864]
[1731876025629,16.69477585,236.03,235.95,0.09367462]
[1731876027158,16.69477585,236.03,235.97,23.776884]
[1731876027536,16.69477585,235.99,235.91,10.5971]
[1731876027760,16.69477585,235.99,235.92,28.015484]
[1731876027961,16.69477585,235.97,235.92,23.776884]
[1731876028147,16.69477585,235.97,235.91,10.5971]
[1731876028459,16.69477585,235.97,235.91,14.836]
[1731876029536,16.69477585,235.97,235.92,23.776884]
[1731876030449,16.69477585,235.97,235.92,28.015484]
[1731876033060,16.69477585,235.99,235.92,28.015484]
[1731876033250,16.69477585,236.03,235.95,0.09367462]
[1731876033445,16.69477585,236.05,235.96,23.776884]
[1731876034350,16.69477585,236.05,235.97,4.2378]
[1731876034557,16.69477585,236.02,235.97,4.2378]
[1731876034945,16.69477585,235.98,235.91,10.5972]
[1731876035136,16.69477585,235.96,235.91,14.836]
[1731876036573,16.69477585,235.96,235.91,10.5972]
[1731876037176,16.69477585,235.94,235.89,4.2392]
[1731876037341,16.69477585,235.92,235.89,4.2392]
[1731876037865,16.69477585,235.92,235.86,10.599]
[1731876039568,16.69477585,235.94,235.86,10.599]
[1731876039968,16.69477585,235.94,235.87,0.21916462]
[1731876040269,10.35229547,235.97,235.89,0.09367462]
[1731876040648,10.35229547,235.99,235.91,23.776884]
[1731876040846,10.35229547,235.99,235.92,4.2387]
[1731876042268,10.35229547,235.97,235.92,4.2387]
[1731876042570,10.35229547,235.93,235.86,10.5991]
[1731876042739,10.35229547,235.91,235.86,10.5991]
[1731876045251,10.35229547,235.95,235.87,23.87055862]
[1731876045465,10.35229547,235.97,235.89,23.776884]
[1731876045668,10.35229547,235.97,235.9,4.239]
[1731876046043,10.35229547,235.95,235.89,34.374584]
[1731876046452,10.35229547,235.95,235.89,38.613784]
[1731876047871,10.35229547,235.95,235.89,14.8369]
[1731876048556,10.35229547,235.95,235.9,23.776884]
[1731876048951,10.35229547,235.97,235.9,23.776884]
[1731876049654,10.35229547,235.97,235.9,28.015884]
[1731876050372,14.59009547,235.97,235.9,28.015884]
[1731876050555,10.35229547,235.97,235.9,38.613584]
[1731876051483,14.59009547,235.97,235.9,38.613584]
[1731876051652,10.35229547,235.95,235.86,14.839]
[1731876051976,10.35229547,235.91,235.86,14.839]
[1731876052573,10.35229547,235.91,235.86,10.5994]
[1731876053472,10.35229547,235.91,235.87,23.776884]
[1731876053651,0.1,235.86,235.7,14.8493]
[1731876053851,10.35229547,235.75,235.7,14.8493]
[1731876054075,10.35229547,235.81,235.71,10.35229547]
[1731876054879,10.35229547,235.81,235.72,0.09367462]
[1731876055065,10.35229547,235.81,235.74,0.09367462]
[1731876055260,10.35229547,235.81,235.74,23.99604862]
[1731876055659,10.35229547,235.76,235.69,4.2427]
[1731876056381,16.59323306,235.76,235.69,4.2427]
[1731876056760,16.59323306,235.76,235.7,23.776884]
[1731876057159,4.2409,235.8,235.7,23.776884]
[1731876057160,16.59323306,235.82,235.73,24.12153862]
[1731876057465,16.59323306,235.82,235.73,0.21916462]
[1731876057779,16.59323306,235.82,235.73,23.99604862]
[1731876058261,16.59323306,235.82,235.74,4.2419]
[1731876058467,16.59323306,235.82,235.75,23.776884]
[1731876060379,16.59323306,235.82,235.76,23.776884]
[1731876060762,20.83373306,235.82,235.76,23.776884]
[1731876063072,20.83373306,235.82,235.75,23.776884]
[1731876064276,20.83373306,235.82,235.75,28.018584]
[1731876064688,20.83303306,235.86,235.77,23.776884]
[1731876064871,20.83273306,235.88,235.8,16.59323306]
[1731876065066,20.83273306,235.88,235.81,23.776884]
[1731876065667,16.59323306,235.86,235.81,23.776884]
[1731876065978,16.59323306,235.86,235.79,28.017784]
[1731876066360,16.59323306,235.92,235.84,16.59323306]
[1731876066559,16.59323306,235.92,235.85,23.776884]
[1731876067589,20.83193306,235.92,235.85,28.016684]
[1731876067786,16.2362,236.0,235.85,28.016684]
[1731876067787,20.83093306,235.98,235.9,23.776884]
[1731876068178,16.59323306,235.95,235.9,23.776884]
[1731876068384,16.59323306,235.95,235.88,23.776884]
[1731876069080,16.59323306,235.89,235.82,23.776884]
[1731876069469,16.59323306,235.89,235.82,28.017284]
[1731876069892,20.83253306,235.89,235.82,28.017284]
[1731876072697,16.59323306,235.85,235.77,16.59323306]
[1731876072987,4.2393,235.89,235.68,37.90833306]
[1731876072988,16.59323306,235.81,235.75,10.6043]
[1731876073199,6.1975,235.86,235.7,10.6066]
[1731876073200,16.59323306,235.79,235.7,10.6066]
[1731876074073,16.59323306,235.79,235.7,14.8492]
[1731876075371,16.59323306,235.79,235.71,23.776884]
[1731876075669,16.59323306,235.79,235.73,23.776884]
[1731876076592,16.59323306,235.81,235.73,23.776884]
[1731876076775,16.59323306,235.81,235.73,40.37011706]
[1731876077476,16.59323306,235.75,235.71,23.776884]
[1731876077681,16.59323306,235.75,235.7,4.2426]
[1731876077682,16.59323306,235.75,235.68,4.2429]
[1731876077982,16.59323306,235.75,235.68,31.44373306]
[1731876078383,10.37099763,235.76,235.68,14.8505]
[1731876078893,10.37099763,235.76,235.7,4.2426]
[1731876079098,10.37099763,235.76,235.71,23.776884]
[1731876081302,10.37099763,235.78,235.71,23.776884]
[1731876081978,10.37099763,235.76,235.68,14.8505]
[1731876082169,10.37099763,235.78,235.69,34.14788163]
[1731876082994,10.37099763,235.8,235.71,10.37099763]
[1731876083200,14.61119763,235.84,235.75,10.37099763]
[1731876083495,20.80839763,235.86,235.77,10.37099763]
[1731876083695,20.80839763,235.86,235.78,23.776884]
[1731876084778,10.37099763,235.86,235.79,0.09367462]
[1731876084977,10.37099763,235.86,235.8,23.776884]
[1731876085195,10.37099763,235.9,235.81,10.37099763]
[1731876085509,10.37099763,235.9,235.82,23.776884]
[1731876085681,6.6162,235.91,235.83,10.37099763]
[1731876085879,15.0548,235.94,235.86,23.776884]
[1731876085880,10.37099763,235.94,235.86,23.776884]
[1731876086286,6.6162,235.97,235.9,23.776884]
[1731876086908,6.6162,235.97,235.9,28.015884]
[1731876087811,10.37099763,235.98,235.91,10.37099763]
[1731876088181,16.98719763,236.03,235.94,23.776884]
[1731876088377,10.37099763,235.99,235.9,10.5977]
[1731876088596,10.853,236.03,235.9,10.5977]
[1731876088597,10.37099763,235.95,235.91,23.776884]
[1731876089900,6.6162,236.03,235.91,23.776884]
[1731876089901,10.37099763,236.01,235.92,23.87055862]
[1731876090107,10.37099763,236.01,235.94,23.776884]
[1731876090904,10.37099763,236.01,235.94,28.015084]
[1731876091516,10.37099763,235.97,235.91,10.5972]
[1731876091679,10.37099763,235.95,235.91,10.5972]
[1731876092006,10.37099763,235.95,235.87,10.37099763]
[1731876092007,10.37099763,235.95,235.88,23.87055862]
[1731876092307,10.37099763,235.93,235.86,14.8391]
[1731876093714,10.37099763,235.93,235.87,23.776884]
[1731876095511,10.37099763,235.89,235.81,10.37099763]
[1731876095687,10.37099763,235.89,235.83,23.776884]
[1731876096006,10.37099763,235.91,235.84,0.09367462]
[1731876096786,10.37099763,235.91,235.85,4.2399]
[1731876097024,10.37099763,235.91,235.86,23.776884]
[1731876097595,6.6162,236.03,235.88,23.776884]
[1731876097596,10.37099763,235.96,235.88,23.776884]
[1731876098607,10.37099763,235.92,235.86,23.776884]
[1731876099911,10.37099763,235.92,235.86,28.016484]
[1731876100803,10.37099763,235.92,235.86,28.016484]
[1731876102215,10.37099763,235.99,235.89,23.776884]
[1731876102390,10.37099763,235.93,235.86,10.5995]
[1731876102592,10.37099763,235.93,235.87,23.776884]
[1731876103604,10.37099763,235.97,235.89,23.776884]
[1731876103799,10.37099763,235.95,235.87,23.776884]
[1731876104115,10.37099763,235.95,235.88,4.2394]
[1731876104309,10.37099763,235.95,235.89,23.776884]
[1731876105097,10.37099763,235.95,235.88,14.838]
[1731876105098,10.37099763,235.91,235.83,10.6006]
[1731876105297,4.2381,235.96,235.83,10.6006]
[1731876105298,10.37099763,235.89,235.83,10.6006]
[1731876105524,4.2377,235.98,235.86,10.37099763]
[1731876105716,10.37099763,235.96,235.89,0.09367462]
[1731876106403,10.37099763,235.96,235.91,23.776884]
[1731876107204,10.37099763,235.94,235.89,10.598]
[1731876107499,10.37099763,235.92,235.84,14.8402]
[1731876108320,10.37099763,235.9,235.84,14.8402]
[1731876108617,10.37099763,235.88,235.84,10.6001]
[1731876109219,10.37099763,235.86,235.79,10.6023]
[1731876109401,10.37099763,235.84,235.79,14.8433]
[1731876110095,10.37099763,235.86,235.79,14.8433]
[1731876110309,10.37099763,235.89,235.81,10.37099763]
[1731876110606,10.37099763,235.89,235.82,14.8418]
[1731876111114,10.37099763,235.89,235.83,23.776884]
[1731876111820,10.37099763,235.89,235.83,28.016984]
[1731876112694,10.37099763,235.87,235.83,28.016984]
[1731876112910,10.37099763,235.85,235.78,14.8443]
[1731876113922,10.37099763,235.85,235.78,10.6031]
[1731876114903,10.37099763,235.85,235.79,23.776884]
[1731876115300,20.0,235.9,235.79,28.017784]
[1731876115502,10.37099763,235.89,235.81,10.37099763]
[1731876115707,16.51979763,235.91,235.82,23.776884]
[1731876115900,10.37099763,235.89,235.82,23.776884]
[1731876116327,10.37099763,235.89,235.8,24.12153862]
[1731876116580,10.37099763,235.89,235.82,23.776884]
[1731876117419,6.1488,235.91,235.82,23.776884]
[1731876117420,16.51979763,235.91,235.82,23.776884]
[1731876117808,10.37099763,235.91,235.83,10.71565225]
[1731876118013,10.37099763,235.93,235.85,10.37099763]
[1731876118222,10.37099763,235.91,235.86,23.776884]
[1731876118427,10.37099763,235.89,235.82,23.776884]
[1731876118621,10.37099763,235.89,235.83,23.776884]
[1731876119431,10.37099763,235.91,235.83,23.776884]
[1731876119906,10.37099763,235.91,235.84,4.2401]
[1731876120533,10.37099763,235.93,235.85,23.776884]
[1731876121531,14.60949763,235.93,235.85,23.776884]
[1731876121942,14.60949763,235.93,235.86,4.2398]
[1731876122229,10.37099763,235.88,235.84,10.6004]
[1731876122617,10.37099763,235.88,235.84,14.8405]
[1731876122808,10.37099763,235.9,235.84,14.8405]
[1731876123835,10.37099763,235.9,235.84,10.6004]
[1731876124135,10.37099763,235.92,235.85,23.776884]
[1731876124435,6.1629,235.96,235.87,23.776884]
[1731876124436,10.37099763,235.96,235.87,23.776884]
[1731876125010,10.37099763,235.96,235.88,10.71565225]
[1731876125213,10.37099763,236.0,235.9,10.71565225]
[1731876125431,10.37099763,236.0,235.91,23.776884]
[1731876125821,10.37099763,235.98,235.91,23.776884]
[1731876126126,10.37099763,235.98,235.92,4.2387]
[1731876126519,4.2373,236.0,235.89,23.776884]